{"text_format":"1","workbook":"xlsx","n_sheets":5,"sheets":["Liste","Sept","Oct","Nov","Dec"],"not_rendered":{"charts":0,"images":0,"macros":1,"external_links":0,"defined_names":1,"comments":0,"pivot_tables":0},"unopened":[],"bounds":{"document_bytes":16777216,"sheet_cells":100000,"rows_first":2000,"rows_last":500,"rows_between":2000,"halvings":0,"cell_chars":16384,"cell_head_chars":4096},"cells_cut":0,"cells_raw":0,"read":"whole","date_system":"1900"}

{"sheet":"Liste","index":0,"n_rows":8,"n_cols":2,"rows_kept":8,"cut":false,"hidden":false,"merged":[]}
["Nom","Spécialité"]
["Pierre"]
["Jean"]
["Paul"]
["Max"]
["Nico"]
["Pierre"]
["Guy"]

{"sheet":"Sept","index":1,"n_rows":8,"n_cols":12,"rows_kept":8,"cut":false,"hidden":false,"merged":[]}
["sept-16","Colonne1","Colonne2","Colonne3","Colonne4","Colonne5","Colonne6","Colonne7","Colonne8","Colonne9","Colonne10","Colonne11"]
[{"$f":"#REF!","v":{"$error":"#REF!"}},{"$f":"#REF!","v":{"$error":"#REF!"}},"AT","AMI","Handic","FMP","Séc.Soc.","Chômage","CPAS","TOTAL","Psy","autre spéc."]
["Pierre",null,null,null,null,null,null,null,null,{"$f":"SUM(C3:I3)","v":0}]
["Jean",null,null,null,null,null,null,null,null,{"$f":"SUM(C4:I4)","v":0}]
["Paul",null,null,null,null,null,null,null,null,0]
["Max",null,null,null,null,null,null,null,null,0]
["Nico",null,null,null,null,null,null,null,null,0]
[{"$f":"Liste!A6","v":"Nico"},null,null,null,null,null,null,null,null,0]

{"sheet":"Oct","index":2,"n_rows":8,"n_cols":12,"rows_kept":8,"cut":false,"hidden":false,"merged":[]}
["sept-16","Colonne1","Colonne2","Colonne3","Colonne4","Colonne5","Colonne6","Colonne7","Colonne8","Colonne9","Colonne10","Colonne11"]
[{"$f":"#REF!","v":{"$error":"#REF!"}},{"$f":"#REF!","v":{"$error":"#REF!"}},"AT","AMI","Handic","FMP","Séc.Soc.","Chômage","CPAS","TOTAL","Psy","autre spéc."]
["Pierre",null,null,null,null,null,null,null,null,{"$f":"SUM(C3:I3)","v":0}]
["Jean",null,null,null,null,null,null,null,null,{"$f":"SUM(C4:I4)","v":0}]
["Paul",null,null,null,null,null,null,null,null,0]
["Max",null,null,null,null,null,null,null,null,0]
["Nico",null,null,null,null,null,null,null,null,0]
[{"$f":"Liste!A6","v":"Nico"},null,null,null,null,null,null,null,null,0]

{"sheet":"Nov","index":3,"n_rows":8,"n_cols":12,"rows_kept":8,"cut":false,"hidden":false,"merged":[]}
["sept-16","Colonne1","Colonne2","Colonne3","Colonne4","Colonne5","Colonne6","Colonne7","Colonne8","Colonne9","Colonne10","Colonne11"]
[{"$f":"#REF!","v":{"$error":"#REF!"}},{"$f":"#REF!","v":{"$error":"#REF!"}},"AT","AMI","Handic","FMP","Séc.Soc.","Chômage","CPAS","TOTAL","Psy","autre spéc."]
["Pierre",null,null,null,null,null,null,null,null,{"$f":"SUM(C3:I3)","v":0}]
["Jean",null,null,null,null,null,null,null,null,{"$f":"SUM(C4:I4)","v":0}]
["Paul",null,null,null,null,null,null,null,null,0]
["Max",null,null,null,null,null,null,null,null,0]
["Nico",null,null,null,null,null,null,null,null,0]
[{"$f":"Liste!A6","v":"Nico"},null,null,null,null,null,null,null,null,0]

{"sheet":"Dec","index":4,"n_rows":8,"n_cols":12,"rows_kept":8,"cut":false,"hidden":false,"merged":[]}
["sept-16","Colonne1","Colonne2","Colonne3","Colonne4","Colonne5","Colonne6","Colonne7","Colonne8","Colonne9","Colonne10","Colonne11"]
[{"$f":"#REF!","v":{"$error":"#REF!"}},{"$f":"#REF!","v":{"$error":"#REF!"}},"AT","AMI","Handic","FMP","Séc.Soc.","Chômage","CPAS","TOTAL","Psy","autre spéc."]
["Pierre",null,null,null,null,null,null,null,null,{"$f":"SUM(C3:I3)","v":0}]
["Jean",null,null,null,null,null,null,null,null,{"$f":"SUM(C4:I4)","v":0}]
["Paul",null,null,null,null,null,null,null,null,0]
["Max",null,null,null,null,null,null,null,null,0]
["Nico",null,null,null,null,null,null,null,null,0]
[{"$f":"Liste!A6","v":"Nico"},null,null,null,null,null,null,null,null,0]